[Event "Titled Tuesday Blitz August 22 Early 2023"]
[White "Materia, Marco"]
[Black "Golubev, Mikhail"]
[WhiteFideId "45150451"]
[BlackFideId "14100983"]
[WhiteElo "2795"]
[BlackElo "2596"]
[Result "1/2-1/2"]
[Round "11"]
[TimeControl "180+1"]
[Date "2023.08.22"]
[WhiteClock "0:01:20"]
[BlackClock "0:00:08"]
[Board "36"]

1. d4 {[%clk 0:03:00]}  Nf6 {[%clk 0:02:59]} 2. c4 {[%clk 0:03:01]}  g6 {[%clk 0:02:59]} 3. Nc3 {[%clk 0:03:01]}  Bg7 {[%clk 0:02:59]} 4. e4 {[%clk 0:03:01]}  d6 {[%clk 0:02:59]} 5. h3 {[%clk 0:03:02]}  Nbd7 {[%clk 0:02:58]} 6. g4 {[%clk 0:02:58]}  a6 {[%clk 0:02:41]} 7. Be3 {[%clk 0:02:56]}  c5 {[%clk 0:02:39]} 8. Nf3 {[%clk 0:02:48]}  O-O {[%clk 0:02:12]} 9. g5 {[%clk 0:02:42]}  Nh5 {[%clk 0:02:11]} 10. Be2 {[%clk 0:02:37]}  b5 {[%clk 0:02:01]} 11. cxb5 {[%clk 0:02:35]}  axb5 {[%clk 0:02:01]} 12. Bxb5 {[%clk 0:02:36]}  cxd4 {[%clk 0:01:52]} 13. Nxd4 {[%clk 0:02:34]}  Bb7 {[%clk 0:01:51]} 14. O-O {[%clk 0:02:21]}  Nc5 {[%clk 0:01:45]} 15. Nc6 {[%clk 0:02:17]}  Bxc6 {[%clk 0:01:37]} 16. Bxc6 {[%clk 0:02:18]}  Rc8 {[%clk 0:01:35]} 17. Bxc5 {[%clk 0:02:06]}  Rxc6 {[%clk 0:01:35]} 18. Be3 {[%clk 0:02:06]}  Bxc3 {[%clk 0:01:30]} 19. bxc3 {[%clk 0:02:06]}  Rxc3 {[%clk 0:01:30]} 20. a4 {[%clk 0:02:06]}  Qa8 {[%clk 0:01:28]} 21. Qd4 {[%clk 0:01:59]}  Rfc8 {[%clk 0:01:24]} 22. Rfc1 {[%clk 0:01:58]}  Rxc1+ {[%clk 0:00:50]} 23. Rxc1 {[%clk 0:01:58]}  Rxc1+ {[%clk 0:00:49]} 24. Bxc1 {[%clk 0:01:59]}  e5 {[%clk 0:00:42]} 25. Qc4 {[%clk 0:01:48]}  Ng7 {[%clk 0:00:42]} 26. Bd2 {[%clk 0:01:47]}  Ne6 {[%clk 0:00:40]} 27. a5 {[%clk 0:01:47]}  Nd4 {[%clk 0:00:38]} 28. Qd3 {[%clk 0:01:41]}  d5 {[%clk 0:00:33]} 29. f3 {[%clk 0:01:41]}  Qc8 {[%clk 0:00:14]} 30. Kg2 {[%clk 0:01:39]}  dxe4 {[%clk 0:00:13]} 31. fxe4 {[%clk 0:01:39]}  Ne6 {[%clk 0:00:09]} 32. a6 {[%clk 0:01:35]}  Nc5 {[%clk 0:00:09]} 33. Qc4 {[%clk 0:01:35]}  Qxa6 {[%clk 0:00:09]} 34. Qxc5 {[%clk 0:01:36]}  Qe2+ {[%clk 0:00:09]} 35. Qf2 {[%clk 0:01:36]}  Qxe4+ {[%clk 0:00:09]} 36. Kh2 {[%clk 0:01:36]}  Qc2 {[%clk 0:00:07]} 37. Be3 {[%clk 0:01:35]}  Qxf2+ {[%clk 0:00:06]} 38. Bxf2 {[%clk 0:01:35]}  f6 {[%clk 0:00:07]} 39. gxf6 {[%clk 0:01:35]}  Kf7 {[%clk 0:00:07]} 40. Kg3 {[%clk 0:01:29]}  Kxf6 {[%clk 0:00:07]} 41. Kg4 {[%clk 0:01:28]}  h5+ {[%clk 0:00:07]} 42. Kg3 {[%clk 0:01:26]}  g5 {[%clk 0:00:06]} 43. Be3 {[%clk 0:01:24]}  Kf5 {[%clk 0:00:06]} 44. Bc1 {[%clk 0:01:22]}  e4 {[%clk 0:00:06]} 45. Be3 {[%clk 0:01:20]}  h4+ {[%clk 0:00:07]} 46. Kh2 {[%clk 0:01:17]}  g4 {[%clk 0:00:07]} 47. hxg4+ {[%clk 0:01:18]}  Kxg4 {[%clk 0:00:07]} 48. Kg2 {[%clk 0:01:18]}  h3+ {[%clk 0:00:07]} 49. Kh2 {[%clk 0:01:18]}  Kf3 {[%clk 0:00:07]} 50. Bb6 {[%clk 0:01:18]}  e3 {[%clk 0:00:08]} 51. Bxe3 {[%clk 0:01:19]}  Kxe3 {[%clk 0:00:08]} 52. Kxh3 {[%clk 0:01:20]} 1/2-1/2


[Site "https://www.chess.com"]

[Event "Titled Tuesday Blitz August 22 Early 2023"]
[White "Leiva, Gianmarco"]
[Black "Ribeiro, Matheus Mendes Domingues"]
[WhiteFideId "3804399"]
[BlackFideId "324226923"]
[WhiteElo "2746"]
[BlackElo "2582"]
[Result "1/2-1/2"]
[Round "11"]
[TimeControl "180+1"]
[Date "2023.08.22"]
[WhiteClock "0:00:16"]
[BlackClock "0:00:10"]
[Board "37"]

1. e4 {[%clk 0:02:44]}  e6 {[%clk 0:02:59]} 2. d4 {[%clk 0:02:35]}  d5 {[%clk 0:02:57]} 3. Nc3 {[%clk 0:02:32]}  Nf6 {[%clk 0:02:57]} 4. Bg5 {[%clk 0:02:31]}  Bb4 {[%clk 0:02:57]} 5. e5 {[%clk 0:02:27]}  h6 {[%clk 0:02:57]} 6. Bc1 {[%clk 0:02:28]}  Ne4 {[%clk 0:02:52]} 7. a3 {[%clk 0:02:10]}  Bxc3+ {[%clk 0:02:49]} 8. bxc3 {[%clk 0:02:09]}  c5 {[%clk 0:02:47]} 9. dxc5 {[%clk 0:01:51]}  Nc6 {[%clk 0:02:43]} 10. Bd3 {[%clk 0:01:40]}  Nxe5 {[%clk 0:02:11]} 11. Bxe4 {[%clk 0:01:09]}  dxe4 {[%clk 0:02:12]} 12. Qd4 {[%clk 0:01:10]}  Qxd4 {[%clk 0:01:41]} 13. cxd4 {[%clk 0:01:10]}  Nc6 {[%clk 0:01:42]} 14. Bb2 {[%clk 0:01:02]}  Ne7 {[%clk 0:01:28]} 15. Ne2 {[%clk 0:01:01]}  Bd7 {[%clk 0:01:28]} 16. c4 {[%clk 0:00:59]}  O-O {[%clk 0:01:12]} 17. a4 {[%clk 0:00:31]}  Rfd8 {[%clk 0:01:00]} 18. a5 {[%clk 0:00:28]}  Bc6 {[%clk 0:00:55]} 19. Kd2 {[%clk 0:00:26]}  e3+ {[%clk 0:00:34]} 20. fxe3 {[%clk 0:00:25]}  Bxg2 {[%clk 0:00:34]} 21. Rhg1 {[%clk 0:00:26]}  Be4 {[%clk 0:00:34]} 22. Ng3 {[%clk 0:00:23]}  Bg6 {[%clk 0:00:31]} 23. h4 {[%clk 0:00:22]}  Nf5 {[%clk 0:00:24]} 24. Nxf5 {[%clk 0:00:13]}  Bxf5 {[%clk 0:00:24]} 25. h5 {[%clk 0:00:12]}  g5 {[%clk 0:00:16]} 26. hxg6 {[%clk 0:00:08]}  Bxg6 {[%clk 0:00:11]} 27. e4 {[%clk 0:00:07]}  Kh7 {[%clk 0:00:06]} 28. Ke3 {[%clk 0:00:08]}  Rg8 {[%clk 0:00:06]} 29. Bc3 {[%clk 0:00:04]}  Bh5 {[%clk 0:00:04]} 30. Rxg8 {[%clk 0:00:03]}  Rxg8 {[%clk 0:00:04]} 31. Rb1 {[%clk 0:00:03]}  Rg3+ {[%clk 0:00:05]} 32. Kd2 {[%clk 0:00:03]}  Rg2+ {[%clk 0:00:06]} 33. Kd3 {[%clk 0:00:03]}  Rg3+ {[%clk 0:00:04]} 34. Kc2 {[%clk 0:00:04]}  Bg6 {[%clk 0:00:05]} 35. Re1 {[%clk 0:00:03]}  Rg4 {[%clk 0:00:03]} 36. Kd3 {[%clk 0:00:03]}  Rg3+ {[%clk 0:00:03]} 37. Re3 {[%clk 0:00:04]}  Rxe3+ {[%clk 0:00:03]} 38. Kxe3 {[%clk 0:00:05]}  f5 {[%clk 0:00:03]} 39. e5 {[%clk 0:00:04]}  Be8 {[%clk 0:00:03]} 40. d5 {[%clk 0:00:05]}  Bd7 {[%clk 0:00:03]} 41. Kd4 {[%clk 0:00:03]}  Kg6 {[%clk 0:00:03]} 42. Bd2 {[%clk 0:00:04]}  h5 {[%clk 0:00:03]} 43. Ke3 {[%clk 0:00:04]}  h4 {[%clk 0:00:03]} 44. Kf4 {[%clk 0:00:04]}  Kh5 {[%clk 0:00:03]} 45. Be1 {[%clk 0:00:04]}  Bc8 {[%clk 0:00:02]} 46. Bf2 {[%clk 0:00:04]}  Bd7 {[%clk 0:00:03]} 47. Bg1 {[%clk 0:00:04]}  a6 {[%clk 0:00:03]} 48. Bf2 {[%clk 0:00:04]}  Kg6 {[%clk 0:00:03]} 49. Bxh4 {[%clk 0:00:05]}  Kf7 {[%clk 0:00:03]} 50. Bd8 {[%clk 0:00:05]}  Ba4 {[%clk 0:00:04]} 51. Ke3 {[%clk 0:00:05]}  Bb3 {[%clk 0:00:04]} 52. Kd4 {[%clk 0:00:05]}  Ba4 {[%clk 0:00:04]} 53. Bg5 {[%clk 0:00:05]}  Bd7 {[%clk 0:00:03]} 54. Bh4 {[%clk 0:00:05]}  Ba4 {[%clk 0:00:03]} 55. Bg3 {[%clk 0:00:03]}  Ke7 {[%clk 0:00:03]} 56. Bh4+ {[%clk 0:00:02]}  Kd7 {[%clk 0:00:04]} 57. Bg5 {[%clk 0:00:03]}  Bb3 {[%clk 0:00:04]} 58. Bd2 {[%clk 0:00:03]}  Ba2 {[%clk 0:00:04]} 59. Bb4 {[%clk 0:00:03]}  Bb3 {[%clk 0:00:05]} 60. Ba3 {[%clk 0:00:04]}  Ba2 {[%clk 0:00:05]} 61. Kc3 {[%clk 0:00:05]}  Bb1 {[%clk 0:00:04]} 62. Kd4 {[%clk 0:00:05]}  Ba2 {[%clk 0:00:05]} 63. Bc1 {[%clk 0:00:05]}  Bb3 {[%clk 0:00:05]} 64. c6+ {[%clk 0:00:03]}  bxc6 {[%clk 0:00:05]} 65. d6 {[%clk 0:00:04]}  Ba2 {[%clk 0:00:04]} 66. Kc5 {[%clk 0:00:04]}  Bb3 {[%clk 0:00:04]} 67. Kb4 {[%clk 0:00:05]}  Bc2 {[%clk 0:00:04]} 68. Bf4 {[%clk 0:00:04]}  Bd1 {[%clk 0:00:04]} 69. Kc3 {[%clk 0:00:04]}  Be2 {[%clk 0:00:04]} 70. Kd4 {[%clk 0:00:05]}  Bf1 {[%clk 0:00:04]} 71. Kc5 {[%clk 0:00:05]}  Be2 {[%clk 0:00:04]} 72. Kb4 {[%clk 0:00:06]}  Bf1 {[%clk 0:00:05]} 73. c5 {[%clk 0:00:06]}  Bb5 {[%clk 0:00:05]} 74. Kc3 {[%clk 0:00:07]}  Be2 {[%clk 0:00:05]} 75. Kd4 {[%clk 0:00:08]}  Bb5 {[%clk 0:00:06]} 76. Ke3 {[%clk 0:00:09]}  Ba4 {[%clk 0:00:07]} 77. Kf2 {[%clk 0:00:10]}  Bb5 {[%clk 0:00:07]} 78. Ke3 {[%clk 0:00:10]}  Bc4 {[%clk 0:00:08]} 79. Kd2 {[%clk 0:00:11]}  Bb5 {[%clk 0:00:08]} 80. Kc3 {[%clk 0:00:12]}  Be2 {[%clk 0:00:09]} 81. Kb2 {[%clk 0:00:13]}  Bf3 {[%clk 0:00:09]} 82. Ka3 {[%clk 0:00:14]}  Be2 {[%clk 0:00:10]} 83. Kb3 {[%clk 0:00:15]}  Bb5 {[%clk 0:00:10]} 84. Kc3 {[%clk 0:00:16]} 1/2-1/2


[Site "https://www.chess.com"]

[Event "Titled Tuesday Blitz August 22 Early 2023"]
[White "Shimanov, Aleksandr"]
[Black "Chyzy, Jakub"]
[WhiteFideId "4198603"]
[BlackFideId "21806209"]
[WhiteElo "2913"]
[BlackElo "2588"]
[Result "0-1"]
[Round "11"]
[TimeControl "180+1"]
[Date "2023.08.22"]
[WhiteClock "0:00:02"]
[BlackClock "0:00:04"]
[Board "41"]

1. e4 {[%clk 0:03:00]}  e5 {[%clk 0:02:58]} 2. Nf3 {[%clk 0:02:59]}  Nc6 {[%clk 0:02:58]} 3. c3 {[%clk 0:03:00]}  d6 {[%clk 0:02:47]} 4. d4 {[%clk 0:02:58]}  Bg4 {[%clk 0:02:46]} 5. Be2 {[%clk 0:02:26]}  Nf6 {[%clk 0:02:41]} 6. Nbd2 {[%clk 0:02:26]}  Bxf3 {[%clk 0:02:35]} 7. Nxf3 {[%clk 0:02:23]}  Be7 {[%clk 0:02:18]} 8. Bd3 {[%clk 0:02:19]}  O-O {[%clk 0:02:16]} 9. O-O {[%clk 0:02:18]}  Nd7 {[%clk 0:02:09]} 10. Re1 {[%clk 0:02:18]}  h6 {[%clk 0:02:07]} 11. Be3 {[%clk 0:02:18]}  Qc8 {[%clk 0:01:52]} 12. Qd2 {[%clk 0:02:15]}  Nf6 {[%clk 0:01:43]} 13. h3 {[%clk 0:02:14]}  Nh5 {[%clk 0:01:41]} 14. Rad1 {[%clk 0:02:09]}  g5 {[%clk 0:01:05]} 15. Nh2 {[%clk 0:02:03]}  Nf4 {[%clk 0:01:02]} 16. Ng4 {[%clk 0:02:01]}  Kg7 {[%clk 0:00:54]} 17. Nh2 {[%clk 0:01:41]}  Kh7 {[%clk 0:00:44]} 18. Nf1 {[%clk 0:01:39]}  Rg8 {[%clk 0:00:40]} 19. Ng3 {[%clk 0:01:38]}  Bf6 {[%clk 0:00:37]} 20. dxe5 {[%clk 0:01:31]}  Bxe5 {[%clk 0:00:31]} 21. Nf5 {[%clk 0:01:27]}  Qe6 {[%clk 0:00:29]} 22. Bc2 {[%clk 0:01:23]}  Ne7 {[%clk 0:00:26]} 23. f3 {[%clk 0:00:46]}  Kh8 {[%clk 0:00:19]} 24. Bd4 {[%clk 0:00:43]}  Nxf5 {[%clk 0:00:15]} 25. exf5 {[%clk 0:00:43]}  Qf6 {[%clk 0:00:16]} 26. Bxe5 {[%clk 0:00:43]}  dxe5 {[%clk 0:00:16]} 27. Qe3 {[%clk 0:00:43]}  Rge8 {[%clk 0:00:15]} 28. Rd7 {[%clk 0:00:43]}  Rac8 {[%clk 0:00:15]} 29. Bb3 {[%clk 0:00:43]}  Re7 {[%clk 0:00:12]} 30. Rxe7 {[%clk 0:00:42]}  Qxe7 {[%clk 0:00:13]} 31. Qxe5+ {[%clk 0:00:42]}  Qxe5 {[%clk 0:00:13]} 32. Rxe5 {[%clk 0:00:43]}  Rd8 {[%clk 0:00:14]} 33. g3 {[%clk 0:00:35]}  Nxh3+ {[%clk 0:00:13]} 34. Kg2 {[%clk 0:00:34]}  g4 {[%clk 0:00:13]} 35. Re2 {[%clk 0:00:24]}  gxf3+ {[%clk 0:00:12]} 36. Kxf3 {[%clk 0:00:24]}  Ng5+ {[%clk 0:00:12]} 37. Kf4 {[%clk 0:00:25]}  Kg7 {[%clk 0:00:12]} 38. Re7 {[%clk 0:00:25]}  Rd3 {[%clk 0:00:12]} 39. Rxc7 {[%clk 0:00:22]}  Kf6 {[%clk 0:00:10]} 40. Kg4 {[%clk 0:00:18]}  h5+ {[%clk 0:00:07]} 41. Kxh5 {[%clk 0:00:18]}  Rxg3 {[%clk 0:00:07]} 42. Rxb7 {[%clk 0:00:17]}  Nf3 {[%clk 0:00:05]} 43. Rxf7+ {[%clk 0:00:15]}  Ke5 {[%clk 0:00:04]} 44. f6 {[%clk 0:00:09]}  Kf5 {[%clk 0:00:03]} 45. Bc2+ {[%clk 0:00:04]}  Kf4 {[%clk 0:00:04]} 46. Rg7 {[%clk 0:00:03]}  Rh3+ {[%clk 0:00:03]} 47. Kg6 {[%clk 0:00:02]}  Ne5# {[%clk 0:00:04]} 0-1


[Site "https://www.chess.com"]

[Event "Titled Tuesday Blitz August 22 Early 2023"]
[White "Harsh Suresh"]
[Black "Eynullayev, Altay"]
[WhiteFideId "45018464"]
[BlackFideId "13413562"]
[WhiteElo "2860"]
[BlackElo "2581"]
[Result "1-0"]
[Round "11"]
[TimeControl "180+1"]
[Date "2023.08.22"]
[WhiteClock "0:02:37"]
[BlackClock "0:00:59"]
[Board "42"]

1. e4 {[%clk 0:03:00]}  c5 {[%clk 0:02:58]} 2. Nc3 {[%clk 0:03:00]}  d6 {[%clk 0:02:59]} 3. f4 {[%clk 0:03:01]}  g6 {[%clk 0:02:58]} 4. Nf3 {[%clk 0:03:01]}  Bg7 {[%clk 0:02:58]} 5. Bc4 {[%clk 0:03:02]}  Nc6 {[%clk 0:02:58]} 6. O-O {[%clk 0:03:02]}  e6 {[%clk 0:02:59]} 7. d3 {[%clk 0:03:03]}  Nge7 {[%clk 0:02:59]} 8. Qe1 {[%clk 0:03:04]}  O-O {[%clk 0:02:59]} 9. f5 {[%clk 0:03:04]}  gxf5 {[%clk 0:02:59]} 10. Bg5 {[%clk 0:03:04]}  f6 {[%clk 0:02:46]} 11. Be3 {[%clk 0:03:05]}  Ne5 {[%clk 0:02:35]} 12. Nxe5 {[%clk 0:03:04]}  fxe5 {[%clk 0:02:35]} 13. Bg5 {[%clk 0:03:04]}  Bf6 {[%clk 0:02:08]} 14. Bh6 {[%clk 0:02:40]}  Bg7 {[%clk 0:01:55]} 15. Qg3 {[%clk 0:02:40]}  Rf7 {[%clk 0:01:17]} 16. exf5 {[%clk 0:02:39]}  Kh8 {[%clk 0:01:14]} 17. Bg5 {[%clk 0:02:38]}  Rxf5 {[%clk 0:01:10]} 18. Rxf5 {[%clk 0:02:37]}  exf5 {[%clk 0:00:59]} 19. Qh4 {[%clk 0:02:37]} 1-0


[Site "https://www.chess.com"]

[Event "Titled Tuesday Blitz August 22 Early 2023"]
[White "Hambleton, Aman"]
[Black "Postlmayer, Jakob"]
[WhiteFideId "2606577"]
[BlackFideId "1643622"]
[WhiteElo "2823"]
[BlackElo "2575"]
[Result "0-1"]
[Round "11"]
[TimeControl "180+1"]
[Date "2023.08.22"]
[WhiteClock "0:00:01"]
[BlackClock "0:00:24"]
[Board "43"]

1. d4 {[%clk 0:03:00]}  d5 {[%clk 0:02:59]} 2. Bf4 {[%clk 0:03:01]}  Nf6 {[%clk 0:02:58]} 3. e3 {[%clk 0:03:01]}  c5 {[%clk 0:02:58]} 4. c3 {[%clk 0:03:02]}  Nc6 {[%clk 0:02:58]} 5. Nd2 {[%clk 0:03:02]}  e6 {[%clk 0:02:56]} 6. Ngf3 {[%clk 0:03:02]}  cxd4 {[%clk 0:02:53]} 7. exd4 {[%clk 0:03:03]}  Nh5 {[%clk 0:02:53]} 8. Be3 {[%clk 0:03:04]}  Bd6 {[%clk 0:02:53]} 9. g3 {[%clk 0:03:04]}  O-O {[%clk 0:02:45]} 10. Bd3 {[%clk 0:03:05]}  g6 {[%clk 0:02:42]} 11. O-O {[%clk 0:03:01]}  e5 {[%clk 0:02:32]} 12. dxe5 {[%clk 0:02:59]}  Nxe5 {[%clk 0:02:33]} 13. Nxe5 {[%clk 0:03:00]}  Bxe5 {[%clk 0:02:33]} 14. Nb3 {[%clk 0:02:40]}  Qc7 {[%clk 0:02:20]} 15. Bd4 {[%clk 0:02:32]}  Bd6 {[%clk 0:02:05]} 16. Qf3 {[%clk 0:02:18]}  Be6 {[%clk 0:02:03]} 17. Rfe1 {[%clk 0:02:15]}  Rae8 {[%clk 0:02:02]} 18. Re3 {[%clk 0:01:58]}  Re7 {[%clk 0:01:48]} 19. Rae1 {[%clk 0:01:54]}  Rfe8 {[%clk 0:01:48]} 20. Bb5 {[%clk 0:01:50]}  Rd8 {[%clk 0:01:41]} 21. Bf6 {[%clk 0:00:55]}  Nxf6 {[%clk 0:01:38]} 22. Qxf6 {[%clk 0:00:56]}  a6 {[%clk 0:01:31]} 23. Bd3 {[%clk 0:00:48]}  Ree8 {[%clk 0:01:26]} 24. Nd4 {[%clk 0:00:28]}  Bd7 {[%clk 0:01:24]} 25. h4 {[%clk 0:00:22]}  Bf8 {[%clk 0:01:18]} 26. Rxe8 {[%clk 0:00:05]}  Rxe8 {[%clk 0:01:17]} 27. Rxe8 {[%clk 0:00:06]}  Bxe8 {[%clk 0:01:18]} 28. Qf3 {[%clk 0:00:04]}  Qe5 {[%clk 0:01:15]} 29. Qe2 {[%clk 0:00:01]}  Bd6 {[%clk 0:01:11]} 30. Qxe5 {[%clk 0:00:01]}  Bxe5 {[%clk 0:01:12]} 31. f4 {[%clk 0:00:02]}  Bd6 {[%clk 0:01:04]} 32. Kf2 {[%clk 0:00:02]}  Kf8 {[%clk 0:01:02]} 33. Ke3 {[%clk 0:00:03]}  Ke7 {[%clk 0:01:02]} 34. g4 {[%clk 0:00:03]}  h6 {[%clk 0:00:58]} 35. g5 {[%clk 0:00:03]}  hxg5 {[%clk 0:00:58]} 36. hxg5 {[%clk 0:00:04]}  Bd7 {[%clk 0:00:57]} 37. Nf3 {[%clk 0:00:03]}  Bg4 {[%clk 0:00:55]} 38. Ne5 {[%clk 0:00:03]}  Bc5+ {[%clk 0:00:54]} 39. Kd2 {[%clk 0:00:03]}  Be6 {[%clk 0:00:51]} 40. b4 {[%clk 0:00:03]}  Ba7 {[%clk 0:00:48]} 41. a4 {[%clk 0:00:02]}  Kd6 {[%clk 0:00:44]} 42. a5 {[%clk 0:00:02]}  Bb8 {[%clk 0:00:40]} 43. Nf3 {[%clk 0:00:01]}  Ba7 {[%clk 0:00:38]} 44. Nd4 {[%clk 0:00:01]}  Bd7 {[%clk 0:00:33]} 45. Ke3 {[%clk 0:00:01]}  Bc8 {[%clk 0:00:32]} 46. Bc2 {[%clk 0:00:02]}  b6 {[%clk 0:00:31]} 47. axb6 {[%clk 0:00:02]}  Bxb6 {[%clk 0:00:31]} 48. Kf3 {[%clk 0:00:02]}  a5 {[%clk 0:00:30]} 49. Nb5+ {[%clk 0:00:01]}  Ke7 {[%clk 0:00:27]} 50. bxa5 {[%clk 0:00:01]}  Bxa5 {[%clk 0:00:28]} 51. Ke3 {[%clk 0:00:01]}  Bd7 {[%clk 0:00:27]} 52. Nd4 {[%clk 0:00:01]}  Bxc3 {[%clk 0:00:27]} 53. Bb3 {[%clk 0:00:02]}  Kd6 {[%clk 0:00:26]} 54. Nb5+ {[%clk 0:00:02]}  Bxb5 {[%clk 0:00:25]} 55. Kf3 {[%clk 0:00:02]}  Kc5 {[%clk 0:00:25]} 56. Kg4 {[%clk 0:00:02]}  Bd7+ {[%clk 0:00:25]} 57. Kh4 {[%clk 0:00:01]}  Be6 {[%clk 0:00:25]} 58. Bc2 {[%clk 0:00:01]}  Be1# {[%clk 0:00:24]} 0-1


[Site "https://www.chess.com"]

[Event "Titled Tuesday Blitz August 22 Early 2023"]
[White "Putnam, Liam"]
[Black "Santos Flores, Alberto"]
[WhiteFideId "30938279"]
[BlackFideId "3601234"]
[WhiteElo "2805"]
[BlackElo "2577"]
[Result "1-0"]
[Round "11"]
[TimeControl "180+1"]
[Date "2023.08.22"]
[WhiteClock "0:01:03"]
[BlackClock "0:00:04"]
[Board "44"]

1. Nf3 {[%clk 0:03:00]}  d5 {[%clk 0:02:58]} 2. b3 {[%clk 0:03:00]}  Bf5 {[%clk 0:02:58]} 3. Bb2 {[%clk 0:03:01]}  Nd7 {[%clk 0:02:58]} 4. g3 {[%clk 0:02:59]}  Ngf6 {[%clk 0:02:58]} 5. Bg2 {[%clk 0:03:00]}  h6 {[%clk 0:02:58]} 6. O-O {[%clk 0:03:01]}  e6 {[%clk 0:02:58]} 7. d3 {[%clk 0:02:59]}  Be7 {[%clk 0:02:57]} 8. Nbd2 {[%clk 0:03:00]}  O-O {[%clk 0:02:57]} 9. Re1 {[%clk 0:02:52]}  Bh7 {[%clk 0:02:54]} 10. e4 {[%clk 0:02:51]}  a5 {[%clk 0:02:42]} 11. a3 {[%clk 0:02:50]}  c6 {[%clk 0:02:26]} 12. Qe2 {[%clk 0:02:41]}  Nc5 {[%clk 0:02:25]} 13. Rad1 {[%clk 0:02:36]}  Qc7 {[%clk 0:02:15]} 14. exd5 {[%clk 0:02:25]}  cxd5 {[%clk 0:02:10]} 15. d4 {[%clk 0:02:24]}  Nce4 {[%clk 0:02:09]} 16. c4 {[%clk 0:02:23]}  Nxd2 {[%clk 0:02:05]} 17. Nxd2 {[%clk 0:02:24]}  Rfd8 {[%clk 0:01:44]} 18. Rc1 {[%clk 0:02:20]}  Qd7 {[%clk 0:01:41]} 19. Nf3 {[%clk 0:02:09]}  Be4 {[%clk 0:01:37]} 20. Ne5 {[%clk 0:02:09]}  Qe8 {[%clk 0:01:37]} 21. f3 {[%clk 0:02:03]}  Bf5 {[%clk 0:01:36]} 22. c5 {[%clk 0:02:04]}  Nd7 {[%clk 0:01:34]} 23. Nd3 {[%clk 0:01:54]}  Nb8 {[%clk 0:01:28]} 24. Ra1 {[%clk 0:01:49]}  Nc6 {[%clk 0:01:27]} 25. Bc3 {[%clk 0:01:48]}  Bf6 {[%clk 0:01:25]} 26. Qe3 {[%clk 0:01:46]}  b6 {[%clk 0:00:52]} 27. b4 {[%clk 0:01:30]}  axb4 {[%clk 0:00:51]} 28. axb4 {[%clk 0:01:31]}  bxc5 {[%clk 0:00:51]} 29. Nxc5 {[%clk 0:01:14]}  Rxa1 {[%clk 0:00:41]} 30. Rxa1 {[%clk 0:01:14]}  Rb8 {[%clk 0:00:42]} 31. Qd2 {[%clk 0:01:12]}  Ra8 {[%clk 0:00:25]} 32. Qb2 {[%clk 0:01:09]}  Rxa1+ {[%clk 0:00:24]} 33. Qxa1 {[%clk 0:01:09]}  Qb8 {[%clk 0:00:24]} 34. Qb2 {[%clk 0:01:06]}  Qb5 {[%clk 0:00:20]} 35. Bf1 {[%clk 0:01:06]}  Qb8 {[%clk 0:00:17]} 36. b5 {[%clk 0:01:06]}  Nd8 {[%clk 0:00:15]} 37. b6 {[%clk 0:01:06]}  Nb7 {[%clk 0:00:15]} 38. Ba6 {[%clk 0:01:02]}  Nd6 {[%clk 0:00:15]} 39. b7 {[%clk 0:01:03]}  Nc4 {[%clk 0:00:12]} 40. Bxc4 {[%clk 0:01:03]}  dxc4 {[%clk 0:00:04]} 41. Nd7 {[%clk 0:01:03]} 1-0


[Site "https://www.chess.com"]

[Event "Titled Tuesday Blitz August 22 Early 2023"]
[White "Adewumi, Tanitoluwa"]
[Black "Shukhman, Anna"]
[WhiteFideId "30966396"]
[BlackFideId "54180058"]
[WhiteElo "2788"]
[BlackElo "2566"]
[Result "0-1"]
[Round "11"]
[TimeControl "180+1"]
[Date "2023.08.22"]
[WhiteClock "0:00:08"]
[BlackClock "0:02:01"]
[Board "45"]

1. e4 {[%clk 0:02:55]}  c5 {[%clk 0:02:59]} 2. Nf3 {[%clk 0:02:55]}  a6 {[%clk 0:02:59]} 3. c4 {[%clk 0:02:39]}  Nc6 {[%clk 0:02:59]} 4. Nc3 {[%clk 0:02:38]}  e5 {[%clk 0:02:59]} 5. d3 {[%clk 0:02:38]}  g6 {[%clk 0:02:59]} 6. Bg5 {[%clk 0:02:33]}  Be7 {[%clk 0:02:45]} 7. Be3 {[%clk 0:02:29]}  d6 {[%clk 0:02:44]} 8. Qd2 {[%clk 0:02:20]}  f5 {[%clk 0:02:41]} 9. exf5 {[%clk 0:02:14]}  gxf5 {[%clk 0:02:41]} 10. Bg5 {[%clk 0:02:10]}  Nf6 {[%clk 0:02:38]} 11. Be2 {[%clk 0:02:07]}  Be6 {[%clk 0:02:37]} 12. O-O {[%clk 0:01:49]}  Rg8 {[%clk 0:02:37]} 13. Rae1 {[%clk 0:01:44]}  Qd7 {[%clk 0:02:37]} 14. Bxf6 {[%clk 0:01:34]}  Bxf6 {[%clk 0:02:36]} 15. Nd5 {[%clk 0:01:20]}  Bxd5 {[%clk 0:02:35]} 16. cxd5 {[%clk 0:01:21]}  Ne7 {[%clk 0:02:36]} 17. Qh6 {[%clk 0:01:18]}  Nxd5 {[%clk 0:02:30]} 18. Qh5+ {[%clk 0:00:53]}  Rg6 {[%clk 0:02:20]} 19. Nh4 {[%clk 0:00:19]}  Nf4 {[%clk 0:02:17]} 20. Qxf5 {[%clk 0:00:18]}  Bxh4 {[%clk 0:02:15]} 21. Qxd7+ {[%clk 0:00:17]}  Kxd7 {[%clk 0:02:16]} 22. Bf3 {[%clk 0:00:16]}  Nxg2 {[%clk 0:02:11]} 23. Re4 {[%clk 0:00:11]}  Ne3+ {[%clk 0:02:05]} 24. Kh1 {[%clk 0:00:11]}  Nxf1 {[%clk 0:02:05]} 25. Rxh4 {[%clk 0:00:10]}  Rag8 {[%clk 0:02:02]} 26. Rxh7+ {[%clk 0:00:08]}  Kd8 {[%clk 0:02:01]} 0-1


[Site "https://www.chess.com"]

[Event "Titled Tuesday Blitz August 22 Early 2023"]
[White "Chor, Kevin"]
[Black "Krzyzanowski, Marcin"]
[WhiteFideId "2090740"]
[BlackFideId "1132199"]
[WhiteElo "2565"]
[BlackElo "2770"]
[Result "0-1"]
[Round "11"]
[TimeControl "180+1"]
[Date "2023.08.22"]
[WhiteClock "0:00:07"]
[BlackClock "0:00:12"]
[Board "46"]

1. e4 {[%clk 0:03:00]}  g6 {[%clk 0:02:58]} 2. d4 {[%clk 0:03:01]}  Bg7 {[%clk 0:02:58]} 3. Nc3 {[%clk 0:03:01]}  c6 {[%clk 0:02:58]} 4. Be3 {[%clk 0:02:53]}  d5 {[%clk 0:02:57]} 5. f3 {[%clk 0:02:53]}  dxe4 {[%clk 0:02:43]} 6. fxe4 {[%clk 0:02:53]}  Nf6 {[%clk 0:02:44]} 7. Be2 {[%clk 0:02:49]}  Qa5 {[%clk 0:02:32]} 8. Qd2 {[%clk 0:02:45]}  e5 {[%clk 0:02:30]} 9. dxe5 {[%clk 0:02:33]}  Ng4 {[%clk 0:02:17]} 10. Bxg4 {[%clk 0:02:19]}  Bxg4 {[%clk 0:02:18]} 11. h3 {[%clk 0:02:13]}  Be6 {[%clk 0:02:14]} 12. Nf3 {[%clk 0:02:13]}  Nd7 {[%clk 0:02:14]} 13. Bh6 {[%clk 0:02:04]}  Bxh6 {[%clk 0:02:08]} 14. Qxh6 {[%clk 0:02:05]}  Nxe5 {[%clk 0:02:06]} 15. O-O-O {[%clk 0:01:53]}  Nd7 {[%clk 0:01:42]} 16. Qh4 {[%clk 0:01:37]}  h6 {[%clk 0:01:34]} 17. Nd4 {[%clk 0:01:04]}  g5 {[%clk 0:01:14]} 18. Qg3 {[%clk 0:01:00]}  O-O-O {[%clk 0:01:14]} 19. Nxe6 {[%clk 0:00:55]}  fxe6 {[%clk 0:01:14]} 20. Rd6 {[%clk 0:00:54]}  Rhe8 {[%clk 0:00:45]} 21. Rhd1 {[%clk 0:00:53]}  Qe5 {[%clk 0:00:40]} 22. Qxe5 {[%clk 0:00:27]}  Nxe5 {[%clk 0:00:41]} 23. Rxd8+ {[%clk 0:00:27]}  Rxd8 {[%clk 0:00:41]} 24. Rxd8+ {[%clk 0:00:28]}  Kxd8 {[%clk 0:00:42]} 25. Kd1 {[%clk 0:00:28]}  Nc4 {[%clk 0:00:41]} 26. Ke2 {[%clk 0:00:23]}  Nxb2 {[%clk 0:00:41]} 27. Kf3 {[%clk 0:00:22]}  Ke7 {[%clk 0:00:38]} 28. Kg4 {[%clk 0:00:20]}  Kf6 {[%clk 0:00:35]} 29. Kh5 {[%clk 0:00:13]}  Kg7 {[%clk 0:00:34]} 30. e5 {[%clk 0:00:09]}  Nc4 {[%clk 0:00:33]} 31. Ne4 {[%clk 0:00:09]}  b6 {[%clk 0:00:11]} 32. Nd6 {[%clk 0:00:08]}  Nxe5 {[%clk 0:00:11]} 33. Nc8 {[%clk 0:00:07]}  Nd7 {[%clk 0:00:11]} 34. Nxa7 {[%clk 0:00:07]}  Nf6# {[%clk 0:00:12]} 0-1


[Site "https://www.chess.com"]